Cogmind - Beta 12 @@@ ROGUE MODE // 2023.04.04 @ 02:18:59 Player: Momo Result: Core destroyed Performance ------------- Evolutions (8) 4000 Regions Visited (23) 4600 Robots Destroyed (286) 1430 Value Destroyed (12936) 12936 Prototype IDs (80) 1600 Alien Tech Used (9) 1800 Bonus (7216) 7216 TOTAL SCORE: 33582 Bonus ------- High Alert Combat Kills 2799 Follower Combat Kills 836 Aligned with FarCom 300 Met Data Miner 300 Met Zhirov 300 Found Hidden Lab 3000 Pursued by Intercept 1000 Friendly Fire -1319 Cogmind --------- Core Integrity 0/1450 Matter 283/300 Energy 297/297 System Corruption 38% Temperature Cool (0) Movement Hovering (56) Location -2/Research Parts ------- > --- POWER (3) -------- Quantum-Particle Reactor > --- PROPULSION (6) --- Hovering Cooled-Centrium Exoskeleton > --- UTILITY (10) ----- Armored Scrap Engine Experimental Coolant Injector Large Storage Unit Advanced Signal Interpreter Experimental Targeting Computer Advanced Transmission Jammer Experimental Hacking Suite Quantum Router > --- WEAPON (5) ------- Thermic Nova Construct/C > --- INVENTORY (15) --- Experimental Energy Well (600) Matter Compressor (250) Long-range Sensor Array Experimental Targeting Computer Advanced Particle Charger Experimental Reaction Control System Advanced Cloaking Device Medium Regenerative Plating Advanced EM Disruption Field Advanced Force Field Subatomic Replicator Terrabomb Core Cannon Peak State ------------ > --- POWER ------------ Quantum-Particle Reactor > --- PROPULSION ------- Hovering Cooled-Centrium Exoskeleton > --- UTILITY ---------- Armored Scrap Engine Experimental Coolant Injector Large Storage Unit Long-range Sensor Array Advanced Signal Interpreter Experimental Targeting Computer Experimental Reaction Control System Experimental Hacking Suite Quantum Router > --- WEAPON ----------- Core Cannon Enhanced Gamma Bomb Array Thermic Nova Construct/C Ballistic Linear Construct/C > --- INVENTORY -------- Experimental Energy Well Matter Compressor Experimental Targeting Computer Advanced Particle Charger Advanced Transmission Jammer Advanced Phase Shifter Advanced Cloaking Device Medium Regenerative Plating Advanced EM Disruption Field Advanced Force Field Subatomic Replicator Terrabomb Sigix Broadsword [Rating: 213] Favorites ----------- Power Constructs Engine Improved Ion Engine Reactor Constructs Propulsion Constructs Leg Carbon-fiber Leg Wheel Armored Wheel Hover Unit Constructs Utility Armored Scrap Engine Device Armored Scrap Engine Storage Large Storage Unit Processor Advanced Signal Interpreter Hackware Quantum Router Protection Medium Regenerative Plating Artifact Phase Redirector Weapon Constructs Energy Gun Constructs Energy Cannon Constructs Ballistic Gun Assault Rifle Ballistic Cannon Advanced Assault Cannon Launcher Tiamat Missile Launcher Special Weapon Guided Remote Datajack Impact Weapon Core Stripper Slashing Weapon Falx Build | -11 -10 -10 -10 -9 -8 -8 -8 -6 -6 -6 -6 -5 -5 -5 -5 -5 -4 -4 -4 -4 -3 -3 -2 ------- Run | Jun Mat Min Exi Min Mat Sto Rec Fac Low Low Dat Pro Fac Upp Upp Zhi Pro Fac Arm Lab Res Qua Res Slots Evolved 16 | . . . . . 4 . . 4 . . . . 2 . . . . 2 . . 2 . 2 Power 1 | . . . . . . . . . . . . . . . . . . 1 . . . . . Propulsion 4 | . . . . . 2 . . 2 . . . . . . . . . . . . . . . Utility 8 | . . . . . . . . 1 . . . . 2 . . . . 1 . . 2 . 2 Weapon 3 | . . . . . 2 . . 1 . . . . . . . . . . . . . . . Parts Attached 188 | 4 5 2 2 1 4 10 2 10 . . . 4 10 1 1 3 5 9 16 15 11 40 33 Power 4 | . . . . 1 . 2 . . . . . . . . . . . 1 . . . . . Engine 3 | . . . . 1 . 2 . . . . . . . . . . . . . . . . . Core . | . . . . . . . . . . . . . . . . . . . . . . . . Reactor 1 | . . . . . . . . . . . . . . . . . . 1 . . . . . Propulsion 10 | 2 2 . . . 1 5 . . . . . . . . . . . . . . . . . Treads . | . . . . . . . . . . . . . . . . . . . . . . . . Leg 2 | . . . . . . 2 . . . . . . . . . . . . . . . . . Wheel 8 | 2 2 . . . 1 3 . . . . . . . . . . . . . . . . . Hover . | . . . . . . . . . . . . . . . . . . . . . . . . Flight . | . . . . . . . . . . . . . . . . . . . . . . . . Utility 105 | . 1 . 1 . . . 1 2 . . . . 3 . . 3 5 7 12 11 10 25 24 Device 67 | . 1 . . . . . 1 . . . . . 2 . . 1 3 5 7 6 4 20 17 Storage 8 | . . . 1 . . . . 2 . . . . . . . 1 1 . . . 1 . 2 Processor 5 | . . . . . . . . . . . . . 1 . . . 1 1 . . . 1 1 Hackware 3 | . . . . . . . . . . . . . . . . . . . . . 3 . . Protection 20 | . . . . . . . . . . . . . . . . 1 . 1 5 5 2 3 3 Artifact 2 | . . . . . . . . . . . . . . . . . . . . . . 1 1 Weapon 69 | 2 2 2 1 . 3 3 1 8 . . . 4 7 1 1 . . 1 4 4 1 15 9 Energy Gun 13 | 1 1 1 . . . 1 . 1 . . . 1 4 . . . . 1 1 1 . . . Energy Cannon 11 | . . . 1 . . . . 1 . . . 1 . . . . . . . 1 . 4 3 Ballistic Gun 1 | 1 . . . . . . . . . . . . . . . . . . . . . . . Ballistic Cannon 7 | . . . . . 3 1 . 2 . . . . . . . . . . 1 . . . . Launcher 23 | . 1 1 . . . 1 1 3 . . . 2 2 1 1 . . . 2 1 1 3 3 Special Weapon 1 | . . . . . . . . . . . . . . . . . . . . 1 . . . Impact Weapon 7 | . . . . . . . . . . . . . 1 . . . . . . . . 5 1 Slashing Weapon 6 | . . . . . . . . 1 . . . . . . . . . . . . . 3 2 Piercing Weapon . | . . . . . . . . . . . . . . . . . . . . . . . . Special Melee Weapon . | . . . . . . . . . . . . . . . . . . . . . . . . Unidentified Prototypes 36 | . . . . . . 1 . 2 . . . . 2 . . 3 2 1 . 6 2 11 6 Corrupted Parts 3 | . . . . . . . . . . . . 2 . . . . 1 . . . . . . System Corruption 30 | . . . . . . . . . . . . 20 . . . . 10 . . . . . . Parts Lost 33 | . 1 1 . . 2 5 . 1 . . . 1 . . . . . 1 2 1 2 1 15 Power 5 | . . . . . 1 1 . . . . . . . . . . . 1 1 . . . 1 Propulsion 5 | . 1 . . . 1 3 . . . . . . . . . . . . . . . . . Utility 6 | . . . . . . . . . . . . . . . . . . . . 1 . 1 4 Weapon 17 | . . 1 . . . 1 . 1 . . . 1 . . . . . . 1 . 2 . 10 Highest Loss Streak 5 | . 1 1 . . 1 2 . 1 . . . 1 . . . . . 1 1 1 2 1 5 To Critical Strikes . | . . . . . . . . . . . . . . . . . . . . . . . . Average Slot Usage (%) 58 | . 64 57 66 71 60 67 60 49 53 53 53 50 46 47 47 50 57 55 55 56 60 54 58 Engine 4 | . . . . 13 9 2 8 5 6 6 6 6 5 5 5 5 5 1 . . . . . Reactor 1 | . . . . . . . . . . . . . . . . . . 6 5 5 4 3 2 Treads 2 | . . . . . . . 6 1 . . . . 1 . . . . 2 3 . . . . Leg 2 | . . . . . . 1 4 . 6 6 6 6 1 . . . . 1 1 5 4 2 . Wheel 6 | . 23 28 28 28 18 20 4 . . . . . . . . . . . . . . . . Device 7 | . 11 14 8 . . . 7 6 6 6 6 6 10 11 5 6 12 13 13 10 7 11 15 Storage 5 | . . . 5 14 9 9 1 5 6 6 6 6 5 5 5 7 8 5 5 5 4 4 4 Processor 1 | . . . . . . . . . . . . . . . . . . 3 5 5 4 4 5 Hackware 1 | . . . . . . . . . . . . . . . . . . . . . 12 10 8 Energy Gun 3 | . 11 1 . . . 5 4 3 . 3 13 2 4 2 . . . 7 4 5 4 . 1 Energy Cannon 3 | . . . 9 1 . . . 5 6 6 6 12 7 10 11 11 11 4 4 5 5 4 4 Ballistic Gun 2 | . 12 . . . . . 4 1 6 3 . 4 . . . . . . 1 . . 3 1 Ballistic Cannon 6 | . . . . . 15 21 11 5 . . . . 2 . . . . 1 1 . . . 1 Launcher 6 | . 3 13 14 14 9 7 7 4 6 6 6 3 . 2 11 11 11 4 5 9 7 . 1 Naked Turns . | . . . . . . . . . . . . . . . . . . . . . . . . Heaviest Build 231 | 3 7 4 213 220 228 231 231 52 51 51 48 51 59 60 59 64 64 92 104 117 118 125 125 Greatest Support 319 | 16 24 24 24 24 24 44 97 81 67 67 67 117 168 81 81 81 81 240 319 253 253 253 268 Greatest Overweight (x) 9 | . 1 . 8 9 9 9 9 1 . . . . . . . . . 1 . . . . . Average Overweight (x) 1 | . . . 1 8 8 8 1 . . . . . . . . . . . . . . . . Largest Inventory Capacity 35 | 5 5 5 35 35 35 35 35 15 15 15 15 15 15 15 15 15 15 15 15 15 15 15 15 Average Capacity 17 | 5 5 5 17 35 35 35 10 14 15 15 15 15 15 15 15 15 14 15 15 15 15 15 15 Most Carried 35 | . 5 5 7 11 13 35 35 15 15 15 9 11 15 15 14 15 15 15 15 15 15 15 15 Average Carried 14 | . 4 5 5 10 11 30 10 11 13 14 9 9 13 14 12 14 14 14 14 13 14 14 13 Final Capacity 35 | 5 5 5 35 35 35 35 5 15 15 15 15 15 15 15 15 15 15 15 15 15 15 15 15 Final Carried 35 | . 5 5 7 11 12 35 5 13 15 9 9 11 14 15 14 15 14 15 14 15 15 15 14 Scrap Engine Consumption 374 | . . . . . . . 83 76 2 9 . 2 19 6 . 6 3 36 42 3 12 25 50 Constructs Created 14 | . . . . . . . 5 . . 1 . . . . . . . 1 2 . 1 . 4 Constructs Modified 153 | . . . . . . . 26 36 . 2 . 4 9 2 . . 1 16 18 2 8 12 17 Class Distribution -------------------- 29% | Construct 20% | Commander-Construct 16% | Hacker-Construct 11% | Hauler-Mutant 7% | Hauler-Skirmisher 4% | Commander-Mutant 3% | Mutant 3% | Commander-Skirmisher Dominant Class ---------------- Mutant | -10/Materials Mutant | -10/Mines Mutant | -10/Exiles Hauler-Mutant | -9/Mines Hauler-Skirmisher | -8/Materials Hauler-Skirmisher | -8/Storage Commander-Construct | -8/Recycling Construct | -6/Factory Construct | -6/Lower Caves Construct | -6/Lower Caves Construct | -6/Data Miner Construct | -5/Proximity Caves Construct | -5/Factory Construct | -5/Upper Caves Construct | -5/Upper Caves Construct | -5/Zhirov Construct | -4/Proximity Caves Construct | -4/Factory Construct | -4/Armory Construct | -4/Lab Hacker-Construct | -3/Research Hacker-Construct | -3/Quarantine Hacker-Construct | -2/Research Resources | -11 -10 -10 -10 -9 -8 -8 -8 -6 -6 -6 -6 -5 -5 -5 -5 -5 -4 -4 -4 -4 -3 -3 -2 ----------- Run | Jun Mat Min Exi Min Mat Sto Rec Fac Low Low Dat Pro Fac Upp Upp Zhi Pro Fac Arm Lab Res Qua Res Matter Collected 6428 | 240 42 52 . 113 106 855 600 625 . 52 . 82 269 229 46 . 196 451 473 90 377 830 700 Remotely . | . . . . . . . . . . . . . . . . . . . . . . . . Salvage Created 13013 | . 106 50 . 220 114 860 1368 2263 . 180 . 116 559 90 7 . 211 511 778 90 775 1321 3394 Parts 600 | . 3 2 . 13 7 51 41 101 . 4 . 6 38 . . . 18 37 35 7 35 48 154 Haulers Intercepted 14 | . . . . . . 5 . 4 . . . . 1 . . . . . . . 1 1 2 Recyclers Shooed 19 | . . . . 1 . 1 11 3 . . . . . . . . . . . . . 1 2 Parts Field Recycled . | . . . . . . . . . . . . . . . . . . . . . . . . Retrieved Matter . | . . . . . . . . . . . . . . . . . . . . . . . . Parts Self-Destructed 13 | . . . . . . . . . . 1 . . . . . . 12 . . . . . . Prevented 5 | . . . . . . . . . . 2 . 3 . . . . . . . . . . . Kills | -11 -10 -10 -10 -9 -8 -8 -8 -6 -6 -6 -6 -5 -5 -5 -5 -5 -4 -4 -4 -4 -3 -3 -2 ------- Run | Jun Mat Min Exi Min Mat Sto Rec Fac Low Low Dat Pro Fac Upp Upp Zhi Pro Fac Arm Lab Res Qua Res Combat Hostiles Destroyed 204 | . 2 2 . 6 5 11 6 32 . 3 . 2 16 1 . . 16 8 21 1 14 17 41 Melee 9 | . . . . . . . . . . . . . . . . . . . . . . 4 5 Guns 42 | . 2 . . . . . 4 9 . . . 1 14 1 . . . 4 . . 1 . 6 Cannons 77 | . . . . . 2 11 2 9 . . . . 2 . . . 2 2 10 1 4 8 24 AOE 63 | . . 2 . 6 3 . . 13 . 1 . 1 . . . . 14 2 11 . 8 . 2 Classes Destroyed 20 | . 1 . . 1 2 4 2 3 . 1 . . 1 . 1 . . . 1 . . . 3 Worker 14 | . . . . . . 2 . 4 . . . . . . . . . 1 . . 3 1 3 Builder 14 | . . . . 1 . 1 1 3 . . . . . . . . . 3 . . . . 5 Tunneler 1 | . . . . . . . . . . . . . . . . . . . . . . . 1 Hauler 14 | . . . . . . 5 . 4 . . . . 1 . . . . . . . 1 1 2 Recycler 22 | . . . . . . 1 14 3 . . . . . . . . . . . . . . 4 Mechanic 1 | . . . . . . . . . . . . . . . . . . . . . . . 1 Operator 4 | . . . . . . . . 4 . . . . . . . . . . . . . . . Drone 3 | . . . . . . . . . . . . . . . 1 . 2 . . . . . . Watcher 7 | . . . . . . . . 1 . . . . . . . . . 1 1 . . 1 3 Swarmer 58 | . . . . . 3 . . 6 . . . . 12 . . . 12 . 7 . 9 3 6 Cutter 3 | . . . . . . . . . . . . . 3 . . . . . . . . . . Saboteur 1 | . . . . . . . . . . . . . . . . . . . . . . . 1 Grunt 46 | . 2 2 . 6 . 5 3 12 . . . . . . . . 1 . 4 . . 5 6 Brawler 1 | . . . . . . . . 1 . . . . . . . . . . . . . . . Duelist 4 | . . . . . . . 1 2 . . . . . . . . . . . . . . 1 Sentry 25 | . . . . . 2 8 2 5 . . . . . 1 . . 1 . 1 . 2 . 3 Demolisher 3 | . . . . . . . . . . . . . . . . . . . 3 . . . . Hunter 17 | . . . . . . 1 1 2 . . . 2 . . . . . 5 2 . . . 4 Programmer 33 | . . . . . . . 1 4 . . . . 1 . . . . 3 4 . 3 4 13 Tracker 7 | . . . . . . . . . . . . . . . . . . . . . . 3 4 Combat Programmer 5 | . . . . . . . . . . . . . . . . . . . . . . 2 3 Master Thief 3 | . . . . . . . . . . 3 . . . . . . . . . . . . . Best Kill Streak 13 | . 2 2 . 5 3 4 6 13 . 3 . 1 5 1 . . 11 3 9 1 9 3 10 Combat Bots Only 11 | . 2 2 . 4 3 3 3 11 . 3 . 1 4 1 . . 11 2 9 1 8 3 5 Max Kills in Single Turn 5 | . 1 1 . 2 2 3 2 3 . 1 . 1 1 1 1 . 5 2 3 1 3 1 4 Gunslinging . | . . . . . . . . . . . . . . . . . . . . . . . . Exploded 5 | . . 1 . 2 2 . . 3 . 1 . 1 . . . . 5 1 3 . 3 . 1 Melee 1 | . . . . . . . . . . . . . . . . . . . . . . 1 1 Uniques/NPCs Destroyed 1 | . . . . . . . . . . . . . . . . . . . . 1 . . . A5 (-4/Lab) Combat | -11 -10 -10 -10 -9 -8 -8 -8 -6 -6 -6 -6 -5 -5 -5 -5 -5 -4 -4 -4 -4 -3 -3 -2 -------- Run | Jun Mat Min Exi Min Mat Sto Rec Fac Low Low Dat Pro Fac Upp Upp Zhi Pro Fac Arm Lab Res Qua Res Damage Taken 22855 | . 128 243 . 85 231 1190 328 1631 . 170 . 526 416 180 111 . 140 1593 2525 504 1380 2938 8536 Core 2217 | . 40 34 . 12 47 234 48 121 . . . 36 . . . . . 170 168 46 50 208 1003 Absorbed by Shields 989 | . . . . . . . . . . . . . . . . . . . . 116 . . 873 Redirected to Core 298 | . . . . . . . . . . . . . . . . . . . . . . . 298 Regen/Repaired (Parts) 10846 | . . . . . . . 139 953 . 99 89 . 387 151 . . 89 865 1583 101 705 2079 3606 Core Remaining (%) 75 | 100 . . . 65 . . 40 . . . . 81 . . . . 100 . . 66 . 74 . Volleys Fired 697 | . 9 5 . 6 6 51 61 51 . 3 . 12 41 4 1 . 12 46 60 39 55 91 144 Largest 4 | . 2 2 . 1 3 3 3 3 . 3 . 3 1 1 2 . 4 2 2 1 3 1 2 Hottest 626 | . 60 90 . 30 144 165 165 200 . 255 . 195 184 184 92 . 626 201 164 82 185 162 300 Shots Fired 1039 | . 18 7 . 6 12 131 90 127 . 9 . 26 82 12 2 . 19 77 75 39 62 89 156 Gun 270 | . 18 4 . . . 9 22 64 . 6 . 10 43 8 . . . 28 8 . 5 . 45 Cannon 696 | . . . . . 9 120 64 56 . 3 . 14 39 4 . . 9 41 55 38 49 89 106 Launcher 73 | . . 3 . 6 3 2 4 7 . . . 2 . . 2 . 10 8 12 1 8 . 5 Special . | . . . . . . . . . . . . . . . . . . . . . . . . Kinetic 400 | . 9 . . . 9 120 80 23 . 3 . 20 23 . . . 2 10 30 . 5 . 66 Thermal 518 | . 9 . . . . 9 6 97 . 3 . . 55 12 . . 7 53 31 38 49 87 62 Explosive 58 | . . 3 . 6 3 . 1 7 . . . . . . 2 . 10 8 12 1 5 . . Electromagnetic 63 | . . 4 . . . 2 3 . . 3 . 6 4 . . . . 6 2 . 3 2 28 Robot Hit Streak 19 | . 5 7 . 8 4 7 9 16 . 6 . 6 8 8 . . 5 19 8 10 12 13 13 Robot Miss Streak 12 | . 2 1 . . 3 5 4 12 . 2 . 5 5 1 2 . 5 3 2 2 4 2 3 Penetration Max 5 | . . . . . . . . . . 1 . . . . . . . . . . . . 5 Secondary Targets . | . . . . . . . . . . . . . . . . . . . . . . . . Autonomous 106 | . . . . . . . . 31 . . . . 41 8 . . . 24 2 . . . . Shots Hit Robots 665 | . 11 7 . 1 4 59 52 122 . 10 . 15 42 11 . . 8 38 44 22 35 51 133 Core Hits 450 | . 5 4 . 12 5 26 38 112 . 2 . 4 17 3 2 . 18 24 35 5 27 22 89 Critical Kills 19 | . . . . . . . . . . . . . . . . . . . . . . 4 15 Critical Parts Destroyed 26 | . . . . . . . . . . . . . . . . . . 2 4 1 4 . 15 Critical Strikes 54 | . . . . . 1 4 1 2 . . . . . . . . . 2 4 1 4 4 31 Burn 1 | . . . . . . 1 . . . . . . . . . . . . . . . . . Meltdown 5 | . . . . . . . . . . . . . . . . . . . . . . 3 2 Destroy 41 | . . . . . . . . . . . . . . . . . . 2 4 1 4 1 29 Blast 5 | . . . . . 1 3 1 . . . . . . . . . . . . . . . . Sever 2 | . . . . . . . . 2 . . . . . . . . . . . . . . . Melee Attacks 118 | . . . . . . . . 33 . 3 . . . . . . . . . . . 38 44 Kinetic 13 | . . . . . . . . . . . . . . . . . . . . . . 8 5 Impact . | . . . . . . . . . . . . . . . . . . . . . . . . Slashing 105 | . . . . . . . . 33 . 3 . . . . . . . . . . . 30 39 Piercing . | . . . . . . . . . . . . . . . . . . . . . . . . Sneak Attacks 17 | . . . . . . . . 12 . . . . . . . . . . . . . 2 3 Combat Hostiles 1 | . . . . . . . . . . . . . . . . . . . . . . 1 . Follow-up Attacks . | . . . . . . . . . . . . . . . . . . . . . . . . Damage Inflicted 43871 | . 133 235 . 317 255 1921 1712 6434 . 563 . 459 1713 476 149 . 1501 2192 3853 1276 3371 3444 13867 Guns 5653 | . 133 70 . . . 76 315 1449 . 185 . 154 992 184 . . . 692 206 . 139 . 1058 Cannons 21891 | . . . . . 113 1553 1031 1383 . 127 . 174 601 292 . . 109 591 1846 1276 2285 1665 8845 Explosions 10281 | . . 165 . 317 142 292 366 1991 . . . 131 120 . 149 . 1392 909 1801 . 947 . 1559 Melee 5987 | . . . . . . . . 1611 . 251 . . . . . . . . . . . 1745 2380 Ramming 59 | . . . . . . . . . . . . . . . . . . . . . . 34 25 Kinetic 7666 | . 56 . . . 113 1553 1251 517 . 76 . 328 129 . . . 36 238 1135 . 139 314 1781 Thermal 20265 | . 77 . . . . 76 95 2626 . 109 . . 1481 476 . . 73 1045 790 1276 2285 1665 8191 Explosive 8521 | . . 165 . 317 142 29 255 1680 . . . . . . 149 . 1392 909 1801 . 837 . 845 Electromagnetic 1949 | . . 70 . . . 263 111 . . 127 . 131 103 . . . . . 127 . 110 . 907 Impact . | . . . . . . . . . . . . . . . . . . . . . . . . Slashing 5411 | . . . . . . . . 1611 . 251 . . . . . . . . . . . 1431 2118 Piercing . | . . . . . . . . . . . . . . . . . . . . . . . . Highest Corruption 38 | . . . . . . 1 3 3 3 5 5 25 2 2 2 2 12 1 2 9 11 34 38 Average Corruption 5 | . . . . . . 1 2 2 3 3 5 5 2 2 2 2 2 1 1 7 3 16 18 Corruption Purged 7 | . . . . . . . . . . . . . . . . . . . . . . . 7 Corruption Blocked . | . . . . . . . . . . . . . . . . . . . . . . . . Effects 332 | . . . . . . 15 89 10 3 8 . 7 5 5 2 2 5 10 11 9 11 70 70 Message Errors 74 | . . . . . . 1 20 2 . 3 . . . 3 1 . . 2 1 4 2 15 20 Matter Fused 69 | . . . . . . 1 21 . 2 1 . . 1 . . 1 1 1 3 1 2 18 16 Heat Flow Errors 53 | . . . . . . 3 12 4 . 2 . . 2 1 1 . 1 2 4 1 2 13 5 Energy Discharges 55 | . . . . . . 5 16 2 1 1 . 1 . . . 1 1 2 2 . 3 10 10 Parts Rejected 3 | . . . . . . . . . . . . 1 . . . . . . 1 . . 1 . Parts Fused 2 | . . . . . . . 1 . . . . . . . . . . . . 1 . . . Data Loss (minor) 37 | . . . . . . 1 11 1 . 1 . 3 1 1 . . 1 2 . . . 9 6 Data Loss (major) 9 | . . . . . . 1 3 . . . . . . . . . 1 1 . . 1 2 . Misfires 7 | . . . . . . 2 1 1 . . . . . . . . . . . 1 . . 2 Alerts 8 | . . . . . . 1 4 . . . . 2 1 . . . . . . . . . . Misdirections 7 | . . . . . . . . . . . . . . . . . . . . . . . 7 Weapon Failures 8 | . . . . . . . . . . . . . . . . . . . . 1 1 2 4 Overload Shots 1 | . . . . . . . . . . . . . . . . . 1 . . . . . . Overflow Damage 4294 | . . 7 . . 33 21 38 397 . 55 . . 20 1 29 . 218 145 313 35 295 384 2303 Projectiles 3030 | . . . . . 20 21 17 67 . . . . 20 1 . . . 128 206 35 266 88 2161 Explosions 524 | . . 7 . . 13 . 21 83 . . . . . . 29 . 218 17 107 . 29 . . Melee 740 | . . . . . . . . 247 . 55 . . . . . . . . . . . 296 142 Knockbacks 44 | . . . . . 1 8 13 . . . . 3 2 . . . . 1 12 . . . 4 Impact 1 | . . . . . . . . . . . . . . . . . . . . . . . 1 Kinetic 41 | . . . . . 1 7 13 . . . . 3 2 . . . . 1 11 . . . 3 Secondary 2 | . . . . . . 1 . . . . . . . . . . . . 1 . . . . Self-Inflicted Damage 930 | . . 98 . 22 . 16 81 179 . . . 3 . . . . . . 267 . 54 16 194 Shots 30 | . . 3 . 1 . 2 3 6 . . . 1 . . . . . . 6 . 4 . 4 Rammed 4 | . . . . . . . . . . . . . . . . . . . . . . 2 2 Targets Rammed 4 | . . . . . . . . . . . . . . . . . . . . . . 2 2 Kicked . | . . . . . . . . . . . . . . . . . . . . . . . . Crushed . | . . . . . . . . . . . . . . . . . . . . . . . . Highest Temperature 733 | . 4 68 . 5 69 548 425 468 . 513 . 376 550 555 82 . 733 347 258 231 355 207 702 Average Temperature 124 | . 2 30 . 3 40 138 126 125 . 195 . 181 167 230 51 . 252 100 60 79 108 87 126 Received Heat Transfer 1871 | . 72 102 . 27 18 207 54 346 . 18 . 12 21 63 9 . . 204 96 . 63 196 363 Effects 33 | . . . . . . 4 5 2 . 3 . 1 2 2 . . 4 . 2 . 2 . 6 Shutdowns 11 | . . . . . . 1 2 1 . 1 . . 1 1 . . 1 . . . 1 . 2 Energy Bleed 9 | . . . . . . 1 1 1 . . . . . 1 . . 2 . . . 1 . 2 Interference 7 | . . . . . . . 2 . . 1 . 1 . . . . 1 . 2 . . . . Matter Decay 3 | . . . . . . 1 . . . 1 . . 1 . . . . . . . . . . Damage (minor) 1 | . . . . . . . . . . . . . . . . . . . . . . . 1 Damage (major) 1 | . . . . . . . . . . . . . . . . . . . . . . . 1 Damage (core) 1 | . . . . . . 1 . . . . . . . . . . . . . . . . . Siege Activations . | . . . . . . . . . . . . . . . . . . . . . . . . Robots Corrupted 7 | . . . . . . . . . . 2 . . 1 . . . . . . . . . 4 Combat Hostiles 5 | . . . . . . . . . . 2 . . . . . . . . . . . . 3 Parts Fried 29 | . . . . . . . . . . 9 . 1 2 . . . . . . . . . 17 Impact Corruptions . | . . . . . . . . . . . . . . . . . . . . . . . . Robots Melted 7 | . . . . . . . . 1 . . . . . . . . . . . . 1 3 2 Combat Hostiles 6 | . . . . . . . . 1 . . . . . . . . . . . . 1 3 1 Parts Melted 30 | . . . . . . . 1 9 . . . . 1 6 . . . 1 . . 4 3 5 Heat Transferred 11119 | . 175 . . . . 222 185 3029 . 111 . . 1569 407 . . 37 1025 481 757 999 1110 1012 Parts Sabotaged . | . . . . . . . . . . . . . . . . . . . . . . . . Parts Stolen 6 | . . . . . . . . . . 3 . . . . 3 . . . . . . . . Parts Stripped . | . . . . . . . . . . . . . . . . . . . . . . . . Power Chain Reactions 4 | . . . . . . . . 3 . . . . . . . . . . . . . . 1 Missiles Intercepted . | . . . . . . . . . . . . . . . . . . . . . . . . Alert | -11 -10 -10 -10 -9 -8 -8 -8 -6 -6 -6 -6 -5 -5 -5 -5 -5 -4 -4 -4 -4 -3 -3 -2 ------- Run | Jun Mat Min Exi Min Mat Sto Rec Fac Low Low Dat Pro Fac Upp Upp Zhi Pro Fac Arm Lab Res Qua Res Peak Influence 1748 | . 55 70 . 134 183 434 291 1134 . . . . 850 . . . . 1215 1373 . 511 555 1748 Initial 504 | . . 21 . . . 72 117 62 . . . . 88 . . . . 504 490 . . 207 305 Average 308 | . 33 67 . 37 111 278 57 407 . . . . 437 . . . . 844 934 . 227 386 608 Maximum Alert Level 5 | . . . . . . 2 1 4 . . . . 3 . . . . 4 4 . 2 2 5 Low Security (%) 49 | 100 100 100 . 100 100 10 95 42 . . . . 18 . . . . . . . 31 . 31 Level 1 23 | . . . . . . 79 4 17 . . . . 23 . . . . . . . 66 53 11 Level 2 13 | . . . . . . 9 . 17 . . . . 49 . . . . 32 34 . 2 46 19 Level 3 9 | . . . . . . . . 17 . . . . 9 . . . . 57 28 . . . 22 Level 4 3 | . . . . . . . . 5 . . . . . . . . . 9 36 . . . 7 Level 5 . | . . . . . . . . . . . . . . . . . . . . . . . 7 High Security . | . . . . . . . . . . . . . . . . . . . . . . . . Max Security . | . . . . . . . . . . . . . . . . . . . . . . . . Squads Dispatched 62 | . 1 . . . . 3 . 8 . . . . 7 . . . . 4 6 . 3 12 18 Investigation 3 | . . . . . . . . 1 . . . . . . . . . . 1 . . . 1 Extermination 16 | . . . . . . . . 3 . . . . 1 . . . . 3 2 . 2 2 3 Reinforcement 16 | . 1 . . . . . . 3 . . . . 4 . . . . . 2 . 1 3 2 Assault 9 | . . . . . . . . . . . . . 2 . . . . 1 1 . . . 5 Garrison 4 | . . . . . . 3 . 1 . . . . . . . . . . . . . . . Intercept 14 | . . . . . . . . . . . . . . . . . . . . . . 7 7 Searches Triggered 1 | . . . . . . . . . . . . . . . . . . 1 . . . . . Data Miner Redirects 8 | . . . . . . . . . . . . . 1 . . . . 1 1 . . . 5 Construction Impeded 2 | . . . . . . . . 1 . . . . . . . . . . . . . . 1 Haulers Reinforced 5 | . . . . . . . . 1 . . . . 1 . . . . . . . . 2 1 Active Scanning Responses . | . . . . . . . . . . . . . . . . . . . . . . . . Cargo Convoy Interrupts 1 | . . . . . . . . . . . . . . . . . . . . . . . 1 Stealth | -11 -10 -10 -10 -9 -8 -8 -8 -6 -6 -6 -6 -5 -5 -5 -5 -5 -4 -4 -4 -4 -3 -3 -2 --------- Run | Jun Mat Min Exi Min Mat Sto Rec Fac Low Low Dat Pro Fac Upp Upp Zhi Pro Fac Arm Lab Res Qua Res Distress Signals 11 | . . . . . . 3 . . . . . . 2 . . . 1 2 1 . 1 1 . Communications Jammed 150 | . . . . . . . . . . . . . . . . . . 35 26 . . 16 73 Distress Signals 150 | . . . . . . . . . . . . . . . . . . 35 26 . . 16 73 Times Spotted 422 | . 4 2 . 7 12 24 11 50 . 17 . 6 41 5 9 . 15 32 34 1 19 34 99 Peak Tracking Total 19 | . 2 2 . 2 6 5 4 10 . 10 . 3 8 5 6 . 6 8 4 1 7 5 19 Tactical Retreats 44 | . . . . . . . 1 4 . 7 . 1 9 2 . . 1 5 3 . . 1 10 Traps | -11 -10 -10 -10 -9 -8 -8 -8 -6 -6 -6 -6 -5 -5 -5 -5 -5 -4 -4 -4 -4 -3 -3 -2 ------- Run | Jun Mat Min Exi Min Mat Sto Rec Fac Low Low Dat Pro Fac Upp Upp Zhi Pro Fac Arm Lab Res Qua Res Traps Triggered 8 | . . . . . . 1 . 3 . . . . 2 . . . . . . . 2 . . Indirectly . | . . . . . . . . . . . . . . . . . . . . . . . . Trap Hack Attempts . | . . . . . . . . . . . . . . . . . . . . . . . . Triggered . | . . . . . . . . . . . . . . . . . . . . . . . . Disarmed . | . . . . . . . . . . . . . . . . . . . . . . . . Reprogrammed . | . . . . . . . . . . . . . . . . . . . . . . . . Reused . | . . . . . . . . . . . . . . . . . . . . . . . . Traps Extracted . | . . . . . . . . . . . . . . . . . . . . . . . . Installed . | . . . . . . . . . . . . . . . . . . . . . . . . Triggered 4 | . . . . . . . . . . 1 . . . . . . . . . . . . 3 Machines | -11 -10 -10 -10 -9 -8 -8 -8 -6 -6 -6 -6 -5 -5 -5 -5 -5 -4 -4 -4 -4 -3 -3 -2 ---------- Run | Jun Mat Min Exi Min Mat Sto Rec Fac Low Low Dat Pro Fac Upp Upp Zhi Pro Fac Arm Lab Res Qua Res Machines Disabled 67 | . . . . . . 4 3 14 . . . . 2 . . . 1 11 8 6 2 8 8 Max in Single Turn 4 | . . . . . . 1 2 4 . . . . 2 . . . 1 2 2 2 1 1 1 Garrison Access 6 | . . . . . . 1 . 2 . . . . 1 . . . . . . . . 1 1 Machines Repaired . | . . . . . . . . . . . . . . . . . . . . . . . . Machines Sabotaged . | . . . . . . . . . . . . . . . . . . . . . . . . Overloaded Fab Kills . | . . . . . . . . . . . . . . . . . . . . . . . . Hacking | -11 -10 -10 -10 -9 -8 -8 -8 -6 -6 -6 -6 -5 -5 -5 -5 -5 -4 -4 -4 -4 -3 -3 -2 --------- Run | Jun Mat Min Exi Min Mat Sto Rec Fac Low Low Dat Pro Fac Upp Upp Zhi Pro Fac Arm Lab Res Qua Res Machines Accessed 79 | . . . 1 . . 6 5 12 1 1 4 . 7 . 2 4 1 4 5 2 4 14 6 Terminals 42 | . . . . . . 3 . 9 . . . . 6 . . . . 2 4 . 4 11 3 Fabricators 3 | . . . . . . . . 1 . . . . . . . . . 1 1 . . . . Repair Stations . | . . . . . . . . . . . . . . . . . . . . . . . . Recycling Units 7 | . . . . . . 2 5 . . . . . . . . . . . . . . . . Scanalyzers 4 | . . . . . . . . . . . . . . . . . . . . . . 2 2 Garrison Access 7 | . . . . . . 1 . 2 . . . . 1 . . . . 1 . . . 1 1 Total Hacks 242 | . . . 1 . . 14 9 21 1 1 28 . 15 . 2 17 1 6 13 19 26 52 16 Successful 145 | . . . 1 . . 5 6 8 1 1 28 . 7 . 2 17 1 1 3 19 13 23 9 Failed 97 | . . . . . . 9 3 13 . . . . 8 . . . . 5 10 . 13 29 7 Catastrophic 21 | . . . . . . 1 . 3 . . . . 2 . . . . 1 4 . 2 7 1 Database Lockouts . | . . . . . . . . . . . . . . . . . . . . . . . . Manual 70 | . . . 1 . . . 1 9 . . . . 3 . . . . 2 7 . 22 24 1 Terminals 127 | . . . . . . 7 . 17 . . . . 12 . . . . 3 12 . 26 43 7 Fabricators 4 | . . . . . . . . 1 . . . . . . . . . 2 1 . . . . Repair Stations . | . . . . . . . . . . . . . . . . . . . . . . . . Recycling Units 14 | . . . . . . 5 9 . . . . . . . . . . . . . . . . Scanalyzers 16 | . . . . . . . . . . . . . . . . . . . . . . 8 8 Garrison Access 11 | . . . . . . 2 . 3 . . . . 3 . . . . 1 . . . 1 1 Terminal Hacks 107 | . . . 1 . . 4 . 3 1 1 28 . 4 . 2 17 1 1 3 19 10 7 5 Record 37 | . . . . . . . . . . . 11 . . . . 5 1 . . 19 . 1 . Part Schematic 14 | . . . . . . . . . . . 10 . . . . 4 . . . . . . . Robot Schematic 4 | . . . . . . . . . . . 4 . . . . . . . . . . . . Robot Analysis 4 | . . . . . . . . . . . . . . . . 4 . . . . . . . Prototype ID Bank 8 | . . . . . . 1 . . . . 3 . . . . 4 . . . . . . . Open Door 5 | . . . . . . 1 . . 1 1 . . . . 2 . . . . . . . . Open DSF 2 | . . . . . . . . . . . . . 1 . . . . . . . . . 1 Branch Access Points 3 | . . . . . . . . 1 . . . . 1 . . . . . . . 1 . . Emergency Access Points 3 | . . . . . . 1 . . . . . . . . . . . . 1 . 1 . . Terminal Index 2 | . . . . . . . . . . . . . . . . . . . . . 1 1 . Alert Level 2 | . . . . . . . . 1 . . . . . . . . . . . . 1 . . Unreport Threat 4 | . . . . . . . . . . . . . . . . . . 1 . . . . 3 Locate Traps 5 | . . . . . . . . 1 . . . . 1 . . . . . . . 1 2 . Dispatch Records 1 | . . . . . . . . . . . . . . . . . . . . . 1 . . Security Status 2 | . . . . . . . . . . . . . . . . . . . . . 1 1 . Surveillance Status 1 | . . . . . . . . . . . . . . . . . . . . . 1 . . Patrol Status 1 | . . . . . . . . . . . . . . . . . . . . . 1 . . Registered Components 2 | . . . . . . 1 . . . . . . . . . . . . 1 . . . . Zone Layout 6 | . . . . . . . . . . . . . 1 . . . . . 1 . 1 2 1 EX-Prototype ID Bank 1 | . . . 1 . . . . . . . . . . . . . . . . . . . . Fabricator Hacks 1 | . . . . . . . . 1 . . . . . . . . . . . . . . . Build 1 | . . . . . . . . 1 . . . . . . . . . . . . . . . Repair Station Hacks . | . . . . . . . . . . . . . . . . . . . . . . . . Recycling Unit Hacks 5 | . . . . . . . 5 . . . . . . . . . . . . . . . . Retrieve Components 5 | . . . . . . . 5 . . . . . . . . . . . . . . . . Scanalyzer 6 | . . . . . . . . . . . . . . . . . . . . . . 4 2 Insert Component 6 | . . . . . . . . . . . . . . . . . . . . . . 4 2 Garrison Access Hacks 6 | . . . . . . 1 . 2 . . . . 1 . . . . . . . . 1 1 Seal Access 6 | . . . . . . 1 . 2 . . . . 1 . . . . . . . . 1 1 Unauthorized Hacks 20 | . . . . . . . 1 2 . . . . 2 . . . . . . . 3 11 1 Terminals 19 | . . . . . . . . 2 . . . . 2 . . . . . . . 3 11 1 Track 2 | . . . . . . . . 1 . . . . . . . . . . . . . 1 . Assimilate 2 | . . . . . . . . . . . . . . . . . . . . . . 2 . Botnet 11 | . . . . . . . . 1 . . . . 1 . . . . . . . 2 6 1 Disrupt 1 | . . . . . . . . . . . . . . . . . . . . . . 1 . Operators 3 | . . . . . . . . . . . . . 1 . . . . . . . 1 1 . Fabricators . | . . . . . . . . . . . . . . . . . . . . . . . . Repair Stations . | . . . . . . . . . . . . . . . . . . . . . . . . Recycling Units 1 | . . . . . . . 1 . . . . . . . . . . . . . . . . Reject 1 | . . . . . . . 1 . . . . . . . . . . . . . . . . Scanalyzers . | . . . . . . . . . . . . . . . . . . . . . . . . Garrison Access . | . . . . . . . . . . . . . . . . . . . . . . . . Data Cores Recovered 3 | . . . . . . . . 3 . . . . . . . . . . . . . . . Used 1 | . . . . . . . . 1 . . . . . . . . . . . . . . . Hacking Detections 49 | . . . . . . 4 3 9 . . . . 5 . . . . 4 5 . 3 12 4 Full Trace Events 2 | . . . . . . . . 1 . . . . . . . . . . 1 . . . . Feedback Events . | . . . . . . . . . . . . . . . . . . . . . . . . Feedback Blocked . | . . . . . . . . . . . . . . . . . . . . . . . . Robot Schematics Acquired 4 | . . . . . . . . . . . 4 . . . . . . . . . . . . Robots Built . | . . . . . . . . . . . . . . . . . . . . . . . . Authchips . | . . . . . . . . . . . . . . . . . . . . . . . . Time . | . . . . . . . . . . . . . . . . . . . . . . . . Total Robot Build Rating . | . . . . . . . . . . . . . . . . . . . . . . . . Part Schematics Acquired 14 | . . . . . . . . . . . 10 . . . . 4 . . . . . . . Parts Built 2 | . . . . . . . . 2 . . . . . . . . . . . . . . . Authchips . | . . . . . . . . . . . . . . . . . . . . . . . . Time 58 | . . . . . . . . 58 . . . . . . . . . . . . . . . Total Part Build Rating 14 | . . . . . . . . 14 . . . . . . . . . . . . . . . Parts Repaired . | . . . . . . . . . . . . . . . . . . . . . . . . Time . | . . . . . . . . . . . . . . . . . . . . . . . . Parts Recycled . | . . . . . . . . . . . . . . . . . . . . . . . . Recycled Matter . | . . . . . . . . . . . . . . . . . . . . . . . . Retrieved Matter . | . . . . . . . . . . . . . . . . . . . . . . . . Retrieved Components 18 | . . . . . . . 18 . . . . . . . . . . . . . . . . Parts Scanalyzed . | . . . . . . . . . . . . . . . . . . . . . . . . Part Schematics Acquired . | . . . . . . . . . . . . . . . . . . . . . . . . Parts Damaged . | . . . . . . . . . . . . . . . . . . . . . . . . Bothacking | -11 -10 -10 -10 -9 -8 -8 -8 -6 -6 -6 -6 -5 -5 -5 -5 -5 -4 -4 -4 -4 -3 -3 -2 ------------ Run | Jun Mat Min Exi Min Mat Sto Rec Fac Low Low Dat Pro Fac Upp Upp Zhi Pro Fac Arm Lab Res Qua Res Used RIF Installer . | . . . . . . . . . . . . . . . . . . . . . . . . Robots Hacked . | . . . . . . . . . . . . . . . . . . . . . . . . Non-combat . | . . . . . . . . . . . . . . . . . . . . . . . . Combat . | . . . . . . . . . . . . . . . . . . . . . . . . Robot Hacks Applied . | . . . . . . . . . . . . . . . . . . . . . . . . Relay Couplers Released 2 | . . . . . . . . . . . . . . . . . . . . . . . 2 Machine Destruction 2 | . . . . . . . . . . . . . . . . . . . . . . . 2 Fabnet Peak Effective % . | . . . . . . . . . . . . . . . . . . . . . . . . Robots Rewired 17 | . . . . . . . 10 . . . . . . . . . . 1 6 . . . . Allies Hacked . | . . . . . . . . . . . . . . . . . . . . . . . . Hacks Repelled . | . . . . . . . . . . . . . . . . . . . . . . . . Allies | -11 -10 -10 -10 -9 -8 -8 -8 -6 -6 -6 -6 -5 -5 -5 -5 -5 -4 -4 -4 -4 -3 -3 -2 -------- Run | Jun Mat Min Exi Min Mat Sto Rec Fac Low Low Dat Pro Fac Upp Upp Zhi Pro Fac Arm Lab Res Qua Res Total Allies 31 | . . 2 . . . 11 10 . . . . 1 . . . . . 1 6 . . . . Largest Group 11 | . . 2 1 . . 11 10 8 . . . 1 . . . . . 1 4 . . . . Highest-Rated Group 268 | . . 50 31 . . 268 220 134 . . . 96 . . . . . 49 188 . . . . Highest-Rated Ally 100 | . . 31 31 . . 100 95 34 . . . 96 . . . . . 49 48 . . . . Total Orders 20 | . . . . . . . 5 3 . . . . 9 2 . . . . 1 . . . . STAY 6 | . . . . . . . 3 2 . . . . . . . . . . 1 . . . . FOLLOW 3 | . . . . . . . 2 1 . . . . . . . . . . . . . . . EXPLORE 9 | . . . . . . . . . . . . . 7 2 . . . . . . . . . RETURN 2 | . . . . . . . . . . . . . 2 . . . . . . . . . . Ally Attacks 135 | . . . . . . 35 26 30 . . . 20 . . . . . 10 14 . . . . Total Damage 4119 | . . . . . . 802 422 623 . . . 665 . . . . . 1202 405 . . . . Kills 31 | . . . . . . 11 6 3 . . . 3 . . . . . 5 3 . . . . Allies Corrupted . | . . . . . . . . . . . . . . . . . . . . . . . . Allies Melted 1 | . . . . . . . . . . . . . . . . . . . . . . . 1 Intel | -11 -10 -10 -10 -9 -8 -8 -8 -6 -6 -6 -6 -5 -5 -5 -5 -5 -4 -4 -4 -4 -3 -3 -2 ------- Run | Jun Mat Min Exi Min Mat Sto Rec Fac Low Low Dat Pro Fac Upp Upp Zhi Pro Fac Arm Lab Res Qua Res Robot Analysis Total 4 | . . . . . . . . . . . . . . . . 4 . . . . . . . Derelict Logs Recovered 10 | . . 1 . 2 . . . . 1 1 . 3 . 1 . . 1 . . . . . . Drone Launches 4 | . . . . . . . . . . . . . 4 . . . . . . . . . . Drone Recoveries 2 | . . . . . . . . . . . . . 2 . . . . . . . . . . Decoded 0b10 Intel 7 | . . . . . . . . . . . . . . . . . . 7 . . . . . Emergency Access 6 | . . . . . . . . . . . . . . . . . . 6 . . . . . Exits 1 | . . . . . . . . . . . . . . . . . . 1 . . . . . Exploration | -11 -10 -10 -10 -9 -8 -8 -8 -6 -6 -6 -6 -5 -5 -5 -5 -5 -4 -4 -4 -4 -3 -3 -2 ------------- Run | Jun Mat Min Exi Min Mat Sto Rec Fac Low Low Dat Pro Fac Upp Upp Zhi Pro Fac Arm Lab Res Qua Res Turns Passed 21108 | 26 200 315 326 1247 394 2759 5235 2456 246 349 38 280 612 284 159 77 353 1022 825 245 579 1444 1637 Spaces Moved 17012 | 39 168 323 271 573 169 1176 1946 2613 505 647 80 426 1101 610 326 146 698 1083 693 162 527 1202 1528 Core 186 | 37 149 . . . . . . . . . . . . . . . . . . . . . . Treads 3328 | . . . . . . . 1201 573 . . . . 420 . . . . 601 464 . . . 69 Legs 4493 | . . . . . . . . 171 505 647 80 426 320 57 . . . 369 229 162 527 923 77 Wheels 3312 | 2 19 323 271 573 169 1176 745 34 . . . . . . . . . . . . . . . Hover 4389 | . . . . . . . . 923 . . . . . 553 326 146 698 97 . . . 279 1367 Flight 1304 | . . . . . . . . 912 . . . . 361 . . . . 16 . . . . 15 Fastest Speed 42 | 50 50 90 90 210 210 160 105 43 48 48 48 48 42 42 42 42 42 42 79 84 84 78 56 Average Speed 95 | 52 85 90 118 210 218 209 169 79 48 48 48 53 43 42 42 42 42 73 80 84 84 82 71 Slowest Speed 225 | 100 100 90 210 225 225 225 225 214 48 48 48 58 58 42 42 42 42 88 84 84 84 84 99 Overloaded Moves . | . . . . . . . . . . . . . . . . . . . . . . . . Propulsion Burnouts . | . . . . . . . . . . . . . . . . . . . . . . . . Robots Hopped 3 | . . . . . . . . 2 1 . . . . . . . . . . . . . . Cave-ins Triggered . | . . . . . . . . . . . . . . . . . . . . . . . . Teleports 2 | . . . . . . . . . . . . . . . . . . . . . . 1 1 Exploration Rate (%) 59 | 3 30 61 60 97 22 94 95 58 69 78 68 71 36 78 50 60 78 24 50 95 13 90 51 Regions Visited 23 Branch Regions 16 Pre-discovered Areas 8 | . . . . 2 . . . . . . 1 1 . . . 3 1 . . . . . . Known Exits Taken 7 | . . . . . . . . 1 . . . . 1 . . . . 1 1 1 1 1 . Unknown Exits Taken 16 | 1 1 1 1 1 1 1 1 . 1 1 1 1 . 1 1 1 1 . . . . . . Scrap Searched 17 | . . 1 . 4 . . . . 2 1 . . . 3 2 . 4 . . . . . . Spaces Dug 131 | . . . . . . 2 . 8 . . . . 15 . . . . 29 14 1 13 37 12 Terrain Destroyed 1190 | . . 10 . 37 24 53 23 245 . 1 . 14 36 1 46 . 145 83 153 6 75 48 190 Melee 13 | . . . . . . . . 7 . . . . . . . . . . . . . 2 4 Projectile 385 | . . . . . 5 47 21 12 . 1 . 14 27 1 . . 8 38 40 6 19 46 100 AOE 792 | . . 10 . 37 19 6 2 226 . . . . 9 . 46 . 137 45 113 . 56 . 86 Terrain Rammed . | . . . . . . . . . . . . . . . . . . . . . . . . Walls Destroyed . | . . . . . . . . . . . . . . . . . . . . . . . . Machines Disabled . | . . . . . . . . . . . . . . . . . . . . . . . . Actions | -11 -10 -10 -10 -9 -8 -8 -8 -6 -6 -6 -6 -5 -5 -5 -5 -5 -4 -4 -4 -4 -3 -3 -2 --------- Run | Jun Mat Min Exi Min Mat Sto Rec Fac Low Low Dat Pro Fac Upp Upp Zhi Pro Fac Arm Lab Res Qua Res Total 20827 | 42 209 339 277 610 184 1374 3816 2850 507 676 79 454 1197 635 346 160 740 1264 888 240 607 1500 1833 Wait 2189 | . 10 10 . 27 3 83 1662 88 2 14 . 8 20 17 11 6 7 61 32 3 10 73 42 Move 16984 | 38 167 322 270 572 168 1175 1945 2608 502 646 79 425 1100 609 325 145 697 1082 692 161 526 1202 1528 Hop 3 | . . . . . . . . 2 1 . . . . . . . . . . . . . . Pick Up 192 | . 10 . 2 3 3 41 2 31 1 3 . 2 11 2 5 3 12 12 1 8 3 17 20 Fast Attach 70 | 4 4 . 2 1 2 4 1 1 . . . 1 8 . . 3 3 4 1 6 1 17 7 Attach 58 | . . . . . 2 4 1 5 . . . 2 2 1 1 1 3 3 3 3 3 11 13 Detach 19 | . . . . 1 . . . 3 . . . 2 1 . . . 1 1 . 4 . 3 3 Swap 66 | . 1 2 . . . 2 . 4 . . . 1 . . . . . 2 12 6 7 15 14 Drop 197 | . 8 . 3 . . 14 40 22 1 7 . 1 13 2 3 2 5 13 3 10 2 31 17 Fire 697 | . 9 5 . 6 6 51 61 51 . 3 . 12 41 4 1 . 12 46 60 39 55 91 144 Melee 118 | . . . . . . . . 33 . 3 . . . . . . . . . . . 38 44 Ram 2 | . . . . . . . . . . . . . . . . . . . . . . 1 1 Kick . | . . . . . . . . . . . . . . . . . . . . . . . . Crush . | . . . . . . . . . . . . . . . . . . . . . . . . Escape Stasis 2 | . . . . . . . . 2 . . . . . . . . . . . . . . . Rewire 229 | . . . . . . . 104 . . . . . . . . . . 40 84 . . 1 . Trap . | . . . . . . . . . . . . . . . . . . . . . . . . Miscellaneous 1 | . . . . . . . . . . . . . 1 . . . . . . . . . . Route ------- -11/Junkyard -10/Materials -10/Mines (discovered 2 exits: [*Mat] / *Exi) -10/Exiles -9/Mines (discovered 2 exits: [*Mat x2]) -8/Materials -8/Storage (discovered 2 exits: [*Fac] / *Rec) -8/Recycling -6/Factory (discovered 5 exits: *Fac x3 / *Low x2) -6/Lower Caves -6/Lower Caves (discovered 2 exits: *Fac / *Dat) -6/Data Miner -5/Proximity Caves -5/Factory (discovered 3 exits: *Fac / *Upp x2) -5/Upper Caves -5/Upper Caves -5/Zhirov -4/Proximity Caves -4/Factory (discovered 3 exits: Upp / [*Ext] / *Arm) -4/Armory (discovered 2 exits: *Res / *Lab) -4/Lab -3/Research (discovered 2 exits: *Qua x2) -3/Quarantine -2/Research (discovered 1 exit: *Acc) History --------- Turn | Location | Event 15 | -11/Junkyard | Discovered new exit (range 14) 27 | -11/Junkyard | Entered Materials 189 | -10/Materials | Discovered new exit (range 16) 227 | -10/Materials | Entered Mines 315 | -10/Mines | Build established: Mutant 318 | -10/Mines | Assembled infested the area 323 | -10/Mines | Assisted by a Guerilla fighting off Assembled 388 | -10/Mines | Learned Materials stockpile data 393 | -10/Mines | Deemed a non-threat by the Exiles lab entrance 393 | -10/Mines | Discovered new exit (range 5) 475 | -10/Mines | Discovered new exit (range 8) 542 | -10/Mines | Entered Exiles 542 | -10/Exiles | Accompanied by 1 ally 564 | -10/Exiles | Met 8R-AWN 572 | -10/Exiles | Led the pair of lost Derelicts to a safe place 580 | -10/Exiles | Met EX-HEX 607 | -10/Exiles | Met EX-BIN 617 | -10/Exiles | Aligned with FarCom system 618 | -10/Exiles | Given EX-Vault access code 640 | -10/Exiles | Opened EX-Vault 652 | -10/Exiles | Found AWS/Thermal 655 | -10/Exiles | Found Gui. Plasma Cannon 675 | -10/Exiles | Warned to stay clear of 0b10 Research branches 700 | -10/Exiles | Met EX-DEC 838 | -10/Exiles | Discovered new exit (range 14) 868 | -10/Exiles | Stole two prototypes: Gui. Plasma Cannon, AWS/Thermal 868 | -10/Exiles | Entered Mines 906 | -9/Mines | A weapon hastily lodged in a ceiling crevice suddenly fell to the ground 1010 | -9/Mines | YI-UF0 nonchalantly dropped a Grenade Launcher on the ground 1021 | -9/Mines | Build established: Hauler-Mutant 1135 | -9/Mines | Discovered new exit (range 16) 1836 | -9/Mines | Learned location of Zion (-7) 1934 | -9/Mines | Discovered new exit (range 11) 2018 | -9/Mines | Joined a pair of Derelicts in attacking an 0b10 outpost 2115 | -9/Mines | Entered Materials 2115 | -8/Materials | Evolved 4 slots: Propulsion x2, Weapon x2 2338 | -8/Materials | Discovered new exit (range 5) 2509 | -8/Materials | Entered Storage 2982 | -8/Storage | Build established: Hauler-Skirmisher 3065 | -8/Storage | Met 01-MTF 3164 | -8/Storage | Discovered new exit (range 12) 3309 | -8/Storage | Discovered new exit (range 6) 3539 | -8/Storage | Garrison activated, responded to threat 3560 | -8/Storage | Core integrity fell below 50% 3679 | -8/Storage | Assisted by bots powering up and referring to "LRC-V3" 3967 | -8/Storage | Build established: Commander-Skirmisher 4328 | -8/Storage | Build established: Commander-Mutant 5056 | -8/Storage | Build established: Commander-Skirmisher 5268 | -8/Storage | Entered Recycling 5268 | -8/Recycling | Accompanied by 8 allies (01-MTF) 5273 | -8/Recycling | 01-MTF left 5367 | -8/Recycling | Build established: Hauler-Skirmisher 5728 | -8/Recycling | Build established: Hauler-Mutant 6250 | -8/Recycling | Found Scrap Engine 6796 | -8/Recycling | Build established: Commander-Construct 10144 | -8/Recycling | Discovered new exit (range 8) 10503 | -8/Recycling | Entered Factory 10503 | -6/Factory | Accompanied by 8 allies 10503 | -6/Factory | Evolved 4 slots: Propulsion x2, Utility x1, Weapon x1 10505 | -6/Factory | FarCom data flow suspended 10725 | -6/Factory | Fabricated Phase Gun? 10980 | -6/Factory | Garrison activated, responded to threat 11063 | -6/Factory | Destroyed 11 combat bots 11289 | -6/Factory | Discovered new exit (range 5) 11300 | -6/Factory | Build established: Construct 11527 | -6/Factory | Found Prototype Launcher 11527 | -6/Factory | Identified Scatter Rocket Array 11531 | -6/Factory | Found Scatter Rocket Array 11643 | -6/Factory | Discovered new exit (range 7) 11938 | -6/Factory | Discovered new exit (range 15) 11979 | -6/Factory | Discovered new exit (range 16) 11983 | -6/Factory | Identified exit to Lower Caves 11987 | -6/Factory | Discovered new exit (range 9) 12223 | -6/Factory | Found Prototype Launcher 12226 | -6/Factory | Identified Rocket Array 12959 | -6/Factory | Entered Lower Caves 12988 | -6/Lower Caves | Learned Factory terminal intel 12992 | -6/Lower Caves | Spotted B-75 Beast 13100 | -6/Lower Caves | Discovered new exit (range 8) 13131 | -6/Lower Caves | Found Prototype Device 13205 | -6/Lower Caves | Entered another Lower Caves area 13206 | -6/Lower Caves | Discovered new exit (range 10) 13461 | -6/Lower Caves | Learned Factory stockpile data 13490 | -6/Lower Caves | Spotted LF-V18(f) 13490 | -6/Lower Caves | Spotted S3-ABO(f) 13490 | -6/Lower Caves | Spotted AT-X67(f) 13491 | -6/Lower Caves | Encountered a Master Thief 13491 | -6/Lower Caves | Encountered a Master Thief 13491 | -6/Lower Caves | Encountered a Master Thief 13491 | -6/Lower Caves | Spotted W0-I82(f) 13491 | -6/Lower Caves | Spotted H6-8NI(f) 13492 | -6/Lower Caves | Encountered a Master Thief 13492 | -6/Lower Caves | Encountered a Master Thief 13493 | -6/Lower Caves | System Restoration Module stolen by Master Thief 13494 | -6/Lower Caves | Destroyed S3-ABO(f) 13495 | -6/Lower Caves | Imp. System Restoration Module stolen by Master Thief 13496 | -6/Lower Caves | Phase Cannon stolen by Master Thief 13497 | -6/Lower Caves | Destroyed AT-X67(f) 13499 | -6/Lower Caves | Destroyed LF-V18(f) 13527 | -6/Lower Caves | Discovered new exit (range 9) 13554 | -6/Lower Caves | Entered Data Miner 13554 | -6/Data Miner | Discovered new exit (range 6) 13564 | -6/Data Miner | Met Data Miner 13572 | -6/Data Miner | Learned location of Section 7 (-2) 13572 | -6/Data Miner | Acquired the access code to Warlord's prototype stash 13579 | -6/Data Miner | Received God Mode back door access code from Data Miner 13592 | -6/Data Miner | Entered Proximity Caves 13596 | -5/Proximity Caves | Learned location of Warlord (-4) 13619 | -5/Proximity Caves | Spotted B-75 Beast 13620 | -5/Proximity Caves | Learned Factory stockpile data 13621 | -5/Proximity Caves | Escorted by Enhanced Grunt 13822 | -5/Proximity Caves | Discovered new exit (range 10) 13825 | -5/Proximity Caves | Attracted the attention of an 0b10 checkpoint 13870 | -5/Proximity Caves | System corruption reached 10% 13872 | -5/Proximity Caves | Entered Factory 13872 | -5/Factory | Evolved 2 slots: Utility x2 13874 | -5/Factory | Loaded intel: 26 terminal locations 13943 | -5/Factory | Identified exit to DSF 13955 | -5/Factory | Discovered new exit (range 20) 14030 | -5/Factory | Identified exit to Upper Caves 14172 | -5/Factory | First assault squad dispatched 14190 | -5/Factory | Incoming assault squad redirected 14286 | -5/Factory | Discovered new exit (range 6) 14484 | -5/Factory | Entered Upper Caves 14484 | -5/Upper Caves | Accompanied by 1 ally 14491 | -5/Upper Caves | Attracted the attention of an 0b10 checkpoint 14600 | -5/Upper Caves | Learned Factory trap positions 14688 | -5/Upper Caves | Discovered new exit (range 8) 14768 | -5/Upper Caves | Entered another Upper Caves area 14768 | -5/Upper Caves | Accompanied by 1 ally 14768 | -5/Upper Caves | Spotted UK-G62(f) 14768 | -5/Upper Caves | Spotted 2D-9SY(f) 14769 | -5/Upper Caves | Encountered a Master Thief 14769 | -5/Upper Caves | Encountered a Master Thief 14769 | -5/Upper Caves | Gui. Plasma Cannon stolen by Master Thief 14776 | -5/Upper Caves | Spotted 9R-ZFP(f) 14777 | -5/Upper Caves | Encountered a Master Thief 14777 | -5/Upper Caves | Matter Compressor stolen by Master Thief 14778 | -5/Upper Caves | Adv. Drone Bay stolen by Master Thief 14880 | -5/Upper Caves | Encountered a Warlord checkpoint 14924 | -5/Upper Caves | Discovered new exit (range 9) 14927 | -5/Upper Caves | Entered Zhirov 14927 | -5/Zhirov | Discovered new exit (range 3) 14935 | -5/Zhirov | Met Zhirov 14943 | -5/Zhirov | Learned location of Testing (-2) 14943 | -5/Zhirov | Learned location of Quarantine (-3) 14943 | -5/Zhirov | Learned location of Command (-1) 14947 | -5/Zhirov | Zhirov requested help retrieving the SGEMP Prototype 14954 | -5/Zhirov | Found Alien Artifact 14954 | -5/Zhirov | Identified Integrated Dissipator 14954 | -5/Zhirov | Installed Integrated Dissipator, increased core heat dissipation (+20) 14960 | -5/Zhirov | Found Alien Artifact 15004 | -5/Zhirov | Entered Proximity Caves 15087 | -4/Proximity Caves | Spotter reported a threat 15124 | -4/Proximity Caves | Spotter reported a threat 15206 | -4/Proximity Caves | Found Alien Artifact 15206 | -4/Proximity Caves | Identified Dimensional Node Initializer 15206 | -4/Proximity Caves | Initialized slip node 15210 | -4/Proximity Caves | Destroyed 11 combat bots 15298 | -4/Proximity Caves | Discovered new exit (range 7) 15335 | -4/Proximity Caves | Identified Heart of Steel 15336 | -4/Proximity Caves | System corruption reached 10% 15357 | -4/Proximity Caves | Entered Factory 15357 | -4/Factory | Evolved 2 slots: Power x1, Utility x1 15358 | -4/Factory | Loaded intel: 85 trap records 15558 | -4/Factory | Discovered new exit (range 15) 15635 | -4/Factory | Search patrols dispatched 15776 | -4/Factory | Identified exit to Upper Caves 15843 | -4/Factory | Found Imp. Powered Armor 15845 | -4/Factory | Found Imp. Powered Armor 15857 | -4/Factory | First assault squad dispatched 15880 | -4/Factory | Incoming assault squad redirected 16364 | -4/Factory | Discovered new exit (range 11) 16378 | -4/Factory | Identified exit to Armory 16379 | -4/Factory | Entered Armory 16796 | -4/Armory | Destroyed 9 combat bots 16950 | -4/Armory | Discovered new exit (range 4) 17086 | -4/Armory | Identified exit to Research 17155 | -4/Armory | First assault squad dispatched 17159 | -4/Armory | Discovered new exit (range 3) 17160 | -4/Armory | Identified exit to Lab 17171 | -4/Armory | Incoming assault squad redirected 17204 | -4/Armory | Entered Lab 17204 | -4/Lab | Discovered exit to Research (range 9) 17215 | -4/Lab | Detected for breach 17218 | -4/Lab | Gained access to the hidden lab's interior 17222 | -4/Lab | Unable to decrypt terminal 17223 | -4/Lab | Confronted by A5 17291 | -4/Lab | Destroyed A5 17305 | -4/Lab | Found Exp. Hacking Suite 17307 | -4/Lab | Found Prototype Hackware 17344 | -4/Lab | Found Alien Artifact 17348 | -4/Lab | Found Alien Artifact 17356 | -4/Lab | Found Alien Artifact 17372 | -4/Lab | Found Prototype Protection 17372 | -4/Lab | Identified Med. Regenerative Plating 17382 | -4/Lab | Found Prototype Energy Cannon 17382 | -4/Lab | Identified Warp Cannon 17386 | -4/Lab | Found Prototype Energy Gun 17386 | -4/Lab | Identified Hyp. EM Gauss Rifle 17393 | -4/Lab | Found Prototype Hackware 17408 | -4/Lab | Unable to decrypt terminal 17420 | -4/Lab | Found Prototype Special Weapon 17420 | -4/Lab | Identified Gui. Remote Datajack 17438 | -4/Lab | Found Alien Artifact 17449 | -4/Lab | Entered Research 17449 | -3/Research | Evolved 2 slots: Utility x2 17490 | -3/Research | Found Unknown Device 17490 | -3/Research | Identified Antimissile System 17512 | -3/Research | Identified Exp. System Shield 17513 | -3/Research | Identified Quantum Router 17520 | -3/Research | Identified exit to Quarantine 17725 | -3/Research | Found Gamma Bomb Array 17831 | -3/Research | Build established: Hacker-Construct 17875 | -3/Research | Destroyed 8 combat bots 18021 | -3/Research | System corruption reached 10% 18028 | -3/Research | Entered Quarantine 18089 | -3/Quarantine | Found Alien Impact Weapon 18089 | -3/Quarantine | Identified Core Stripper 18312 | -3/Quarantine | Intercept squad dispatched 18331 | -3/Quarantine | Spotted Tracker 18340 | -3/Quarantine | Destroyed Tracker 18351 | -3/Quarantine | Found Prototype Device 18351 | -3/Quarantine | Identified Exp. Phase Shifter 18360 | -3/Quarantine | Found Prototype Processor 18367 | -3/Quarantine | Spotted Combat Programmer 18372 | -3/Quarantine | Destroyed Combat Programmer 18382 | -3/Quarantine | Found Prototype Device 18382 | -3/Quarantine | Identified Exp. Focal Shield 18394 | -3/Quarantine | Found Prototype Processor 18394 | -3/Quarantine | Identified Exp. Target Analyzer 18429 | -3/Quarantine | Found Unknown Launcher 18429 | -3/Quarantine | Identified Fusion Bomb Launcher 18436 | -3/Quarantine | Identified Transdimensional Reconstructor (x2) 18436 | -3/Quarantine | Identified Integrated Reactor 18436 | -3/Quarantine | Identified Core Expander 18436 | -3/Quarantine | Identified Core Reset Matrix 18436 | -3/Quarantine | Installed Core Expander, added new Power slot 18618 | -3/Quarantine | Found Alien Artifact 18622 | -3/Quarantine | Installed Integrated Reactor, increased core energy generation (+10) 18626 | -3/Quarantine | Found Alien Artifact 18904 | -3/Quarantine | Found Alien Artifact 18925 | -3/Quarantine | Found Alien Slashing Weapon 18938 | -3/Quarantine | Discovered new exit (range 9) 18953 | -3/Quarantine | Found Alien Energy Cannon 18953 | -3/Quarantine | Identified Core Cannon 18955 | -3/Quarantine | Identified Sigix Broadsword 18958 | -3/Quarantine | Identified Phase Redirector 19043 | -3/Quarantine | Found Alien Artifact 19048 | -3/Quarantine | Intercept squad dispatched 19058 | -3/Quarantine | Spotted Tracker 19059 | -3/Quarantine | Spotted Tracker 19062 | -3/Quarantine | Destroyed Tracker 19066 | -3/Quarantine | Destroyed Tracker 19083 | -3/Quarantine | Spotted Combat Programmer 19084 | -3/Quarantine | Spotted Combat Programmer 19105 | -3/Quarantine | Warped through subspace 19160 | -3/Quarantine | Destroyed Combat Programmer 19204 | -3/Quarantine | Found Transdimensional Reconstructor 19373 | -3/Quarantine | System corruption reached 30% 19470 | -3/Quarantine | Intercept squad dispatched 19470 | -3/Quarantine | Spotted Combat Programmer 19470 | -3/Quarantine | Spotted Tracker 19470 | -3/Quarantine | Identified exit to Research 19472 | -3/Quarantine | Entered Research 19472 | -2/Research | Evolved 2 slots: Utility x2 19577 | -2/Research | Identified exit to DSF 19967 | -2/Research | Identified Subatomic Replicator 19967 | -2/Research | Identified Terrabomb 20023 | -2/Research | Cargo convoy interrupted 20061 | -2/Research | Found Adv. EM Disruption Field 20082 | -2/Research | Incoming investigation squad redirected 20084 | -2/Research | Intercept squad dispatched 20103 | -2/Research | Spotted Tracker 20103 | -2/Research | Spotted Tracker 20108 | -2/Research | Destroyed Tracker 20110 | -2/Research | Destroyed Tracker 20137 | -2/Research | Warped through subspace 20156 | -2/Research | System corruption reached 10% 20166 | -2/Research | Lost 5 parts (1u4w) 20222 | -2/Research | First assault squad dispatched 20228 | -2/Research | Spotted Combat Programmer 20260 | -2/Research | Destroyed Combat Programmer 20269 | -2/Research | Incoming assault squad redirected 20304 | -2/Research | Spotted Combat Programmer 20314 | -2/Research | Identified Exp. Targeting Computer 20319 | -2/Research | Destroyed Combat Programmer 20466 | -2/Research | Found Prototype Launcher 20466 | -2/Research | Identified Enh. Gamma Bomb Array 20495 | -2/Research | Incoming assault squad redirected 20505 | -2/Research | Core integrity fell below 50% 20576 | -2/Research | Intercept squad dispatched 20600 | -2/Research | Spotted Tracker 20601 | -2/Research | Spotted Tracker 20602 | -2/Research | Destroyed Tracker 20611 | -2/Research | Destroyed Tracker 20627 | -2/Research | Found Exp. Targeting Computer 20661 | -2/Research | Spotted Combat Programmer 20677 | -2/Research | Spotted Combat Programmer 20677 | -2/Research | Destroyed Combat Programmer 20727 | -2/Research | Found Prototype Device 20727 | -2/Research | Identified Exp. Actuator Array 20736 | -2/Research | Found Prototype Launcher 20736 | -2/Research | Identified Point Singularity Launcher 20750 | -2/Research | Incoming assault squad redirected 20952 | -2/Research | Core integrity fell below 20% 21010 | -2/Research | Spotted B-90 Cyclops 21017 | -2/Research | Spotted B-90 Cyclops 21034 | -2/Research | Incoming assault squad redirected 21055 | -2/Research | Lost 5 parts (1p1u3w) 21063 | -2/Research | System corruption reached 30% 21094 | -2/Research | Intercept squad dispatched 21106 | -2/Research | Discovered new exit (range 6) 21108 | -2/Research | Identified exit to Access 21109 | -2/Research | Core destroyed Last Messages --------------- 21050_ NX5FT=74>X:Y&EI P & 21061_ P-80 Master resets P-80 Master, system corruption cleaned. 21063_ Sigix Broadsword destroyed. 21066_ P-80 Master shuts down. 21074_ System corrupted: Energy discharge (-115). 21075_ M-36 Artificer repairs P-80 Master. 21083_ Door malfunctions. 21089_ P-80 Master resets P-80 Master, system corruption cleaned. 21092_ System corrupted: Matter fused (-7). 21094_ ALERT: Reliable intel has pinpointed LRC-V3, intercept squad en route. 21106_ Door malfunctions. 21106_ EXIT=FOUND 21107_ Knocked back. 21108_ System corrupted: Matter fused (-10). 21108_ EXIT=IDENTIFIED: ACCESS 21109_ Slammed into H-81 Overseer. 21109_ Destabilizing: Core damaged (-58). Map ----- +----------------------------------------------------+ | ?????????????????????????????????????????????????? | | ?????????????????????????????????????????????????? | | ?????????????????????????????????????????????????? | | ?????????????????????????????????????????????????? | | ?????????????????????????????????????????????????? | | ?????????????????????????????????????????????????? | | ?????????????????????????????????????????????????? | | ?????????????????????????????????????????????????? | | ?????????????????????????????????????????????????? | | ????????????????????????????????????????##???????? | | ???????????????????????????????????????? ???????? | | ???????????????????????????????????????# ""?""??? | | ???????????????????????????????????????# ""F "??? | | ???????????????????????????????????????# """ ??? | | ???????????????????????????????????????# ???? | | ???????????????????????????????????????# ???? | | ???????????????????????????????????????# ????? | | ???????????????????????????????????????# "????? | | ???????????????????????????????????????# ?????? | | ???????????????????????????###########?# ?????? | | ???????????????????????????# """"" #?? ??????? | | ????????????????????######## "" F" #?? ??????? | | ????????????????????# # "" "" #??#+####+### | | ?????????????## ##### ] # #??# + | | ????????????? A tpm= # #??# ## | | ????????????????????# H@ /% #### ## | | ????????????????????# Y= # pkp p ## | | ????????????????????# # ####### #? | | ????????????????????### #############?????# #? | | ??????????????????????#g ??????????????????# ## | | ????????????????????? + R??????????????????# | | ???????????????????? #R ??????????????????# % | | ??????????????????? # t??????????????????# | | ?????????????????? ?#k ??????????????????# | | ????????????????? ??# ???????????????????####+## | | ????????????????###???# ????????????????????? | | ??????????????????????#u????????######????? | | ??????????????????????# ???????? #?? | | ??????????????????????p ???????# ## * | | ?????????????????????? ????????# ## | | ???????????????????????????????# ############ | | ?????????????????????#######???# #??????????? | | ?????????????????????# T # #??????????? | | ?????????????????????# = # #??????????? | | ?????????????????????# # #??????????? | | ?????????????????????# """ # #??????????? | | ?????????????????????# """ # #??????????? | | ?????????????????????# ! """ # #??????????? | | ????????????????#????# # ???????????? | | ????????????????# ???# ??# ?????????????? | +----------------------------------------------------+ Best States ------------- Heat Dissipation 104 Coolant Potential 120 Energy Generation 73 Energy Capacity 872 Matter Stores 300 Matter Capacity 300 Sight Range 16 Robot Scan Range 18 Terrain Scan Density 10 Jamming Range 16 Power Amplification 40 EM Shielding 4 Armor Coverage 400 Resistance: EM 50 Phase Shifting 20 Evasion (%) 69 Targeting Accuracy 12 Recoil Reduction 6 Offensive Hacking 16 Defensive Hacking 41 Item Schematics ----------------- Combat Drone Bay | -6/Data Miner | Free Lgt. Regenerative Plating | -6/Data Miner | Free Enh. Flexi-carbon Leg | -6/Data Miner | Free Prc. Matter Filter | -6/Data Miner | Free Myomer Leg | -6/Data Miner | Free Quantum Capacitor | -6/Data Miner | Free Dispersion Rifle | -6/Data Miner | Free Q-thruster | -6/Data Miner | Free Imp. Fusion Compressor | -6/Data Miner | Free Hvy. Proton Cannon | -6/Data Miner | Free Exp. Heat Sink | -5/Zhirov | Free Exp. Optical Array | -5/Zhirov | Free Imp. Arc Thrower | -5/Zhirov | Free Assault Drone Bay | -5/Zhirov | Free Robot Schematics ------------------ B-60 Warrior | -6/Data Miner | Free Y-64 Sentinel | -6/Data Miner | Free B-48 Gladiator | -6/Data Miner | Free G-50 Soldier | -6/Data Miner | Free Fabricated ------------ Phase Gun | x2 | -6/Factory | Preloaded Alien Tech Used ----------------- Integrated Dissipator Dimensional Node Initializer Core Stripper Core Expander Integrated Reactor Core Cannon Sigix Broadsword Phase Redirector Transdimensional Reconstructor Achievements -------------- None Challenges ------------ None Game ------ Seed SuperchargedMiniLog Manual? 1 Play Time 04:24:16 Cumulative 427.1 hours Start 2023.04.02 @ 18:34:37 End 2023.04.04 @ 02:18:59 Sessions 5 Manual Loads 0 Difficulty Rogue Special Mode None Game No. 197 Rogue 193 Adventurer 0 Explorer 4 Win Type - Total 24 Types 8/1/2/5/1/2/3/1/1 Lore% 86 Gallery% 88 Achievement% 80 Wizard Run 0 Options --------- ASCII 0 Keyboard 0 Movement Mouse Keybinds 0 Fullscreen 1 Font 18/SmallcapsGlow Map View 76x50 Tactical HUD 1 Map Filters NONE Filters NONE Steam 1 RUN: 24deed1c-bc71-406f-ac7f-2e428986b9cb